[Event "89_| Campeonato Brasileiro 2023"]
[Site "Recife"]
[Date "2023.12.16"]
[Round "6.8"]
[White "Da Silva, Giovanni B Tavares"]
[Black "Aranha Filho, Alvaro Zimmermann"]
[Result "0-1"]
[ECO "B33"]
[WhiteElo "2001"]
[BlackElo "2182"]
[PlyCount "100"]
[EventDate "2023.??.??"]
[EventCountry "BRA"]
[TimeControl "90+30"]
[WhiteClock "0:01:27"]
[BlackClock "0:12:28"]

{[%evp 22,100,42,-6,-6,-9,-2,0,5,-5,8,-23,1,-22,-29,-43,8,10,25,7,9,7,11,8,9,9,
13,8,35,30,38,17,52,44,79,6,66,51,92,90,94,43,117,20,282,182,266,56,187,76,76,
49,48,54,174,48,50,0,0,0,1,0,0,-5,0,0,0,-11,-22,-569,-569,-547,-539,-615,-489,
-680,-638,-763,-685,-763,-700]} 1. e4 {[%emt 0:00:00]} c5 {[%emt 0:00:00]} 2.
Nf3 {[%emt 0:00:00]} Nc6 {[%emt 0:00:00]} 3. d4 {[%emt 0:00:00]} cxd4 {[%emt 0:
00:00]} 4. Nxd4 {[%emt 0:00:00]} Nf6 {[%emt 0:00:00]} 5. Nc3 {[%emt 0:00:00]}
e5 {[%emt 0:00:00]} 6. Ndb5 {[%emt 0:00:00]} d6 {[%emt 0:00:00]} 7. Bg5 {
[%emt 0:00:00]} a6 {[%emt 0:00:00]} 8. Na3 {[%emt 0:00:00]} b5 {[%emt 0:00:00]}
9. Nd5 {[%emt 0:00:00]} Be7 {[%emt 0:00:00]} 10. Bxf6 {[%emt 0:00:00]} Bxf6 {
[%emt 0:00:00]} 11. c3 {[%emt 0:00:00]} Bg5 {[%emt 0:00:00]} 12. Bd3 {[%emt 0:
00:00]} (12. Nc2 {seems wilder.} O-O 13. a4 bxa4 14. Rxa4 a5 15. Bc4) 12... Ne7
{[%emt 0:00:00] B33: Sicilian: Pelikan and Sveshnikov Variations.} 13. Nxe7 {
[%emt 0:00:00]} Qxe7 {[%emt 0:00:00]} 14. O-O {[%emt 0:00:00]} O-O {[%emt 0:00:
00] The position is equal.} 15. Nc2 {[%emt 0:00:00]} g6 {[%emt 0:00:00]} 16.
Qe2 {[%emt 0:00:00]} f5 $146 {[%emt 0:00:00]} ({Predecessor:} 16... Rb8 17. a4
bxa4 18. Nb4 Bd7 19. Nd5 Qd8 20. Bxa6 f5 21. f3 Kh8 22. Bd3 Be6 {0-1 (50)
Aguiar,C (1994)-Blalock,R (2203) Olival Basto 2006}) 17. a4 {[%emt 0:00:00]} d5
$1 {[%emt 0:00:00][%cal Rd5e4]} 18. f3 {[%emt 0:00:00]} Rb8 {[%emt 0:00:00]}
19. axb5 {[%emt 0:00:00]} axb5 {[%emt 0:00:00]} 20. exd5 {[%emt 0:00:00] White
wants to play Nb4.} Qc5+ {[%emt 0:00:00]} 21. Kh1 {[%emt 0:00:00]} Qxd5 {
[%emt 0:00:00]} 22. c4 {[%emt 0:00:00]} Qd6 {[%emt 0:00:00]} 23. cxb5 {[%emt 0:
00:00]} Bb7 {[%emt 0:00:00]} 24. Rad1 {[%emt 0:00:00] And now Bc4+ would win.}
Qc5 {[%emt 0:00:00]} 25. Bc4+ {[%emt 0:00:00]} Kh8 {[%emt 0:00:00]} 26. b4 {
[%emt 0:00:00]} Qe7 {[%emt 0:00:00]} 27. Bd5 {[%emt 0:00:00]} Bf6 {[%emt 0:00:
00]} 28. Qc4 {[%eval 6,34] [%emt 0:00:00]} (28. Ne3 $16 {[%eval 79,21]}) 28...
Bxd5 {[%eval 66,25] [%emt 0:00:00]} (28... Rbc8 $11 {[%eval 6,34]} 29. Qe2 Bxd5
30. Rxd5 Rc3) 29. Rxd5 $14 {[%emt 0:00:00]} e4 {[%emt 0:00:00]} 30. Nd4 {
[%emt 0:06:28]} exf3 {[%emt 0:00:00]} 31. Nxf3 {[%emt 0:00:50]} ({Not} 31. Rxf3
$2 Qe4 $19) 31... Rfe8 {[%eval 117,23] [%emt 0:00:00]} ({Better is} 31... Qe4
$14 {[%eval 43,26]} 32. Nd2 Qe7) 32. h3 {[%eval 20,30] [%emt 0:03:32]} (32.
Rfd1 $16 {[%eval 117,23]}) 32... Qe3 $2 {[%eval 282,25] [%emt 0:00:00][%mdl
8192]} (32... Qe2 $11 {[%eval 20,30] and Black stays safe.} 33. Qxe2 Rxe2) 33.
Rc1 {[%emt 0:03:16]} Qe6 {[%eval 266,24] [%emt 0:00:00]} (33... Re4 {[%eval
182,26] might work better.} 34. Qc7 Qb6) 34. Nd4 $2 {[%eval 56,29] [%emt 0:01:
01]} (34. Re1 $18 {[%eval 266,24]} Qf7 35. Rxe8+ Qxe8 36. Qc6) 34... Qf7 {
[%eval 187,24] [%emt 0:00:00] [#]} (34... Qe4 $14 {[%eval 56,29]}) 35. Nc6 {
[%eval 76,25] [%emt 0:00:30]} (35. Nf3 $1 $18 {[%eval 187,24] and White stays
clearly on top.}) 35... Rb7 $16 {[%emt 0:00:00]} 36. Qd3 {[%emt 0:00:30] Black
must now prevent Nd8.} Kg7 {[%emt 0:00:00]} 37. Rd1 {[%emt 0:00:30]} h5 {
[%eval 174,24] [%emt 0:00:00] [#]} (37... Kh6 $14 {[%eval 54,27]}) 38. Kg1 {
[%eval 48,26] [%emt 0:00:30]} (38. b6 $1 $18 {[%eval 174,24]}) 38... Kh6 $14 {
[%emt 0:00:00]} 39. Rd7 {[%emt 0:00:30]} Rxd7 {[%emt 0:00:00]} 40. Qxd7 {
[%emt 0:00:30]} Qb3 {[%emt 0:00:00]} 41. Rf1 {[%emt 0:00:30]} Re2 {[%emt 0:00:
00] Hoping for ...Qa2.} 42. Nd8 $132 {[%emt 0:00:30][%mdl 2048] White puts up
resistance} Qe3+ {[%emt 0:00:00]} ({Don't take} 42... Qxb4 43. Kh2 $17) 43. Kh1
{[%emt 0:00:30]} Be7 {[%emt 0:00:00]} (43... Rd2 $5 44. Nf7+ $8 Kg7 $15) 44.
Nf7+ {[%emt 0:00:30]} Kg7 {[%emt 0:00:00]} 45. Qd5 $2 {[%eval -569,29] [%emt 0:
00:30][%mdl 8192]} (45. Nd8 $1 $11 {[%eval -22,31] and White is okay.}) 45...
Qe4 $19 {[%emt 0:00:00] Black is clearly winning.} 46. Qxe4 {[%emt 0:00:30]}
Rxe4 {[%emt 0:00:00]} 47. g4 {[%emt 0:00:30]} Kxf7 {[%emt 0:00:00]} 48. gxh5 {
[%emt 0:00:30]} Rxb4 {[%emt 0:00:00]} 49. hxg6+ {[%emt 0:00:30]} Kxg6 {[%emt 0:
00:00]} 50. Kg2 {[%emt 0:02:26]} Rxb5 {[%emt 0:14:02] Accuracy: White = 40%,
Black = 54%.} 0-1

[Event "89_| Campeonato Brasileiro 2023"]
[Site "Recife"]
[Date "2023.12.18"]
[Round "7.1"]
[White "Fier, Alexandr"]
[Black "Quintiliano Pinto, Renato Rodrigues"]
[Result "1/2-1/2"]
[ECO "C41"]
[WhiteElo "2545"]
[BlackElo "2489"]
[PlyCount "49"]
[EventDate "2023.??.??"]
[EventCountry "BRA"]
[TimeControl "90+30"]
[WhiteClock "0:48:06"]
[BlackClock "0:09:48"]

{[%evp 10,49,52,42,47,44,60,21,41,43,49,-2,21,17,19,-58,-35,-58,-34,-52,-26,
-24,0,0,0,0,20,-53,26,0,0,0,0,0,0,3,0,1,3,0,2,0]} 1. e4 {[%emt 0:00:00]} d6 {
[%emt 0:00:00]} 2. d4 {[%emt 0:00:00]} Nf6 {[%emt 0:00:00]} 3. Nc3 {[%emt 0:00:
00]} e5 {[%emt 0:00:00]} 4. Nf3 {[%emt 0:00:00]} Nbd7 {[%emt 0:00:00]} 5. h3 {
[%emt 0:00:00]} Be7 {[%emt 0:00:00]} 6. Be3 {[%emt 0:00:00]} c6 {[%emt 0:00:00]
C41: Philidor Defence.} 7. g4 {[%emt 0:00:00]} h6 {[%emt 0:00:00]} 8. a3 {
[%emt 0:00:00]} Qa5 {[%emt 0:00:00] Black wants to play ...Nxe4.} 9. Qd2 {
[%emt 0:00:00]} b5 {[%emt 0:00:00]} 10. Bg2 $146 {[%eval -2,30] [%emt 0:00:00]}
(10. Ne2 $14 {[%eval 49,23]} Qxd2+ 11. Nxd2) ({Predecessor:} 10. Bd3 Rb8 11.
O-O Qc7 12. a4 b4 13. Ne2 c5 14. dxe5 Nxe5 15. Nxe5 dxe5 16. Bb5+ {1/2-1/2 (49)
Milenkovic,M (2343)-Colovic,D (2376) Golubac 2008}) 10... b4 {[%emt 0:00:00]}
11. Na2 $1 {[%emt 0:00:00]} Nxe4 {[%emt 0:00:00]} 12. Qxb4 {[%eval -58,26] 
[%emt 0:00:00]} (12. axb4 $11 {[%eval 19,33]} Nxd2 13. bxa5 Nxf3+ 14. Bxf3)
12... Qc7 $1 $36 {[%emt 0:00:00][%mdl 2048] Black has the initiative.} 13. dxe5
{[%emt 0:00:00]} d5 {[%emt 0:00:00]} 14. Qd4 $1 {[%emt 0:00:00]} O-O {[%emt 0:
00:00]} 15. Nc3 {[%emt 0:00:00]} c5 {[%emt 0:00:00]} 16. Qd3 {[%emt 0:00:00]}
Nxc3 {[%emt 0:00:00]} 17. bxc3 {[%emt 0:00:00]} Bb7 {[%emt 0:00:00]} 18. Bf4 {
[%eval -53,31] [%emt 0:00:00]} (18. O-O $11 {[%eval 20,37]}) 18... Bf6 {
[%eval 26,35] [%emt 0:00:00]} (18... Qc6 $1 $15 {[%eval -53,31]}) 19. Rb1 {
[%emt 0:00:00] Strongly threatening Rxb7.} Rae8 {[%emt 0:00:53][%cal Rd7e5]
The position is equal.} 20. O-O {[%emt 0:00:00]} Nxe5 {[%emt 0:00:07]} 21. Nxe5
{[%emt 0:00:00]} Bxe5 {[%emt 0:00:09]} 22. Bxe5 {[%emt 0:00:00]} Rxe5 {[%emt 0:
00:10]} 23. Qg3 {[%emt 0:00:00] [#] Rxb7! is the strong threat.} Ba8 {[%emt 0:
00:50]} 24. Rbe1 {[%emt 0:00:00]} Re7 {[%emt 0:01:33]} 25. Qxc7 {[%emt 0:00:00]
Accuracy: White = 69%, Black = 64%.} 1/2-1/2

[Event "89_| Campeonato Brasileiro 2023"]
[Site "Recife"]
[Date "2023.12.18"]
[Round "7.3"]
[White "Do Valle Cardoso, Lucas"]
[Black "Mekhitarian, Krikor Sevag"]
[Result "1-0"]
[ECO "D02"]
[WhiteElo "2352"]
[BlackElo "2559"]
[PlyCount "63"]
[EventDate "2023.??.??"]
[EventCountry "BRA"]
[TimeControl "90+30"]
[WhiteClock "0:10:42"]
[BlackClock "0:00:32"]

{[%evp 12,63,13,0,3,-13,-10,-8,-17,-17,-20,-19,-22,-45,-22,-19,-13,-92,-95,
-117,-103,-127,-127,-125,-61,-58,-64,-57,-5,-12,0,0,0,0,0,0,22,-6,0,0,101,85,
175,166,471,474,496,501,508,496,497,513,576,546]} 1. Nf3 {[%emt 0:00:00]} d5 {
[%emt 0:00:00]} 2. g3 {[%emt 0:00:00]} c6 {[%emt 0:00:00]} 3. Bg2 {[%emt 0:00:
00]} Bg4 {[%emt 0:00:00]} 4. O-O {[%emt 0:00:00]} Nd7 {[%emt 0:00:00]} 5. d4 {
[%emt 0:00:00]} e6 {[%emt 0:00:00]} 6. Nbd2 {[%emt 0:00:00]} Ngf6 {[%emt 0:00:
00]} 7. c4 {[%emt 0:00:00]} Be7 {[%emt 0:00:00] D02:1 d4 d5 2 Nf3 sidelines,
including 2...Nf6 3 g3 and 2...Nf6 3 Bf4.} 8. b3 {[%emt 0:00:00]} O-O {[%emt 0:
00:00]} 9. h3 {[%emt 0:00:00]} Bf5 {[%emt 0:00:00] The position is equal.} 10.
g4 {[%emt 0:00:00]} Bg6 {[%emt 0:00:00]} 11. Nh4 {[%emt 0:00:00]} Be4 $146 {
[%emt 0:00:00]} ({Predecessor:} 11... a5 12. Nxg6 hxg6 13. e4 dxe4 14. Nxe4
Nxe4 15. Bxe4 Qc7 16. Be3 Rfd8 17. Qc2 Nf6 {0-1 (61) Hernando Pertierra,J 
(2348)-Garrido Olivares,R (2167) Collado Villalba 2017}) 12. Nhf3 {[%emt 0:00:
00]} h6 {[%emt 0:00:00]} 13. Nxe4 {[%emt 0:00:00]} Nxe4 {[%emt 0:00:00]} 14.
Bb2 {[%eval -92,24] [%emt 0:00:00]} (14. Bf4 $11 {[%eval -13,29] remains equal.
}) 14... f5 $1 $17 {[%emt 0:00:00]} 15. gxf5 {[%emt 0:00:00]} Rxf5 {[%emt 0:00:
00]} 16. Nd2 {[%emt 0:00:00]} Nxd2 {[%emt 0:00:00]} 17. Qxd2 {[%emt 0:00:00] 
[#]} Bd6 {[%eval -61,33] [%emt 0:00:00]} (17... Nf6 $1 $17 {[%eval -125,26]})
18. e4 $1 $15 {[%emt 0:00:00][%cal Re4f5]} dxe4 {[%emt 0:00:00]} 19. Bxe4 {
[%emt 0:00:00]} Rf4 {[%eval -5,36] [%emt 0:00:00]} ({Better is} 19... Rg5+ $15
{[%eval -57,24]} 20. Kh1 Rh5) 20. Bg2 $11 {[%emt 0:00:00]} Qh4 {[%emt 0:00:00]}
21. Rae1 $36 {[%emt 0:00:00][%mdl 2048] White is pushing.} Re8 {[%emt 0:00:00]}
22. Re3 {[%emt 0:00:00]} Rf5 {[%emt 0:04:13] aiming for ...Qf4.} 23. Re4 {
[%emt 0:00:00]} Rf4 {[%emt 0:03:10]} 24. Re3 {[%emt 0:00:00]} Nf6 {[%emt 0:01:
23]} 25. Qe2 {[%emt 0:00:00]} Kf7 {[%eval 101,27] [%emt 0:02:09] [#]} (25...
Rg4 $1 $11 {[%eval 0,36] keeps the balance.}) 26. d5 $1 $16 {[%emt 0:03:01]
[%cal Re3e6][%mdl 576] Deflection} cxd5 {[%eval 175,26] [%emt 0:00:32]} (26...
Rf5 $16 {[%eval 85,27]}) 27. cxd5 $18 {[%emt 0:00:07]} Nxd5 $2 {[%eval 471,31]
[%emt 0:02:13]} (27... Kg8 {[%eval 166,30]} 28. Rxe6 Rd8) 28. Bxd5 {[%emt 0:00:
42] White is clearly winning.} exd5 {[%emt 0:00:08]} 29. Rxe8 {[%emt 0:00:09]
[%csl Ge8][%cal Re2e6]} Qxh3 {[%emt 0:00:56] ( -> ...Rg4+)} 30. Re3 {[%emt 0:
02:13]} Rg4+ {[%emt 0:01:13] [#]} 31. Rg3 $1 {[%emt 0:00:02]} h5 {[%emt 0:00:
31]} (31... Bxg3 32. fxg3+) 32. Qxg4 {[%emt 0:00:34] Accuracy: White = 79%,
Black = 54%.} 1-0

[Event "89_| Campeonato Brasileiro 2023"]
[Site "Recife"]
[Date "2023.12.18"]
[Round "7.4"]
[White "Diamant, Andre"]
[Black "Labussiere, Yago"]
[Result "1/2-1/2"]
[ECO "B27"]
[WhiteElo "2513"]
[BlackElo "2182"]
[PlyCount "93"]
[EventDate "2023.??.??"]
[EventCountry "BRA"]
[TimeControl "90+30"]
[WhiteClock "0:00:24"]
[BlackClock "0:00:34"]

{[%evp 9,93,53,50,46,78,59,58,62,57,52,78,72,70,62,50,41,37,-4,-4,-12,6,6,25,1,
7,4,14,14,24,25,25,22,23,22,21,0,5,0,0,0,0,0,0,0,0,0,0,-2,-2,-23,0,0,0,0,0,0,0,
0,0,0,0,0,0,0,0,0,0,0,0,0,0,0,0,0,0,0,0,0,0,0,0,0,0,0,0,0]} 1. e4 {[%emt 0:00:
00]} c5 {[%emt 0:00:00]} 2. Nf3 {[%emt 0:00:00]} g6 {[%emt 0:00:00]} 3. c3 {
[%emt 0:00:00]} Nf6 {[%emt 0:00:00]} 4. e5 {[%emt 0:00:00]} Nd5 {[%emt 0:00:00]
} 5. d4 {[%emt 0:00:00]} cxd4 {[%emt 0:00:00]} 6. Qxd4 {[%emt 0:00:00] B27:
Sicilian: 2 Nf3, unusual Black 2nd moves.} Nb6 {[%emt 0:00:00]} 7. Bf4 {
[%emt 0:00:00]} Nc6 {[%emt 0:00:00]} 8. Qd2 $146 {[%emt 0:00:00] White is
slightly better.} ({Predecessor:} 8. Qe4 d5 9. exd6 Bf5 10. Qe2 Nd5 11. Be5
Nxe5 12. Qxe5 Nf6 13. Bb5+ Bd7 14. O-O Bxb5 15. Qxb5+ {1-0 (74) Yuan,Q (2373)
-Mgeladze,T (2388) Chess.com INT 2023}) 8... Bg7 {[%emt 0:00:00]} 9. Be2 {
[%emt 0:00:00]} f6 {[%emt 0:00:00]} 10. Bh6 {[%emt 0:00:00]} O-O {[%emt 0:00:
00]} 11. Bxg7 {[%emt 0:00:00]} Kxg7 {[%emt 0:00:00]} 12. exf6+ {[%emt 0:00:00]}
Rxf6 {[%emt 0:00:00]} 13. c4 {[%eval -4,30] [%emt 0:00:00]} (13. O-O $14 {
[%eval 37,28]}) 13... d5 $11 {[%emt 0:00:00]} 14. cxd5 {[%emt 0:00:00]} Qxd5 {
[%emt 0:00:00]} 15. O-O {[%emt 0:00:00]} Bf5 {[%emt 0:00:00]} 16. Rd1 {[%emt 0:
00:00]} (16. Qc1 {is more complex.} Bxb1 17. Qxb1 Rd8 18. Re1 Qf5 19. Qxf5 Rxf5
20. Rac1) 16... Qxd2 {[%emt 0:00:00]} 17. Rxd2 {[%emt 0:00:00]} Bxb1 {[%emt 0:
00:04]} 18. Rxb1 {[%emt 0:00:00]} Rd6 {[%emt 0:00:07]} 19. Rxd6 {[%emt 0:01:44]
} exd6 {[%emt 0:00:02]} 20. Rd1 {[%emt 0:00:01]} Re8 {[%emt 0:04:24]} 21. Bb5 {
[%emt 0:00:51]} d5 {[%emt 0:01:51]} 22. Nd4 {[%emt 0:01:39]} Rc8 {[%emt 0:02:
38]} 23. Bxc6 {[%emt 0:01:03]} bxc6 {[%emt 0:00:01][%cal Bb7c6,Bc6c5][%mdl
4128] Endgame KRN-KRN} 24. Rc1 {[%emt 0:00:09]} Nc4 {[%emt 0:03:48]} 25. b3 {
[%emt 0:00:39]} c5 {[%emt 0:00:04]} 26. Nb5 {[%emt 0:05:45]} Nb6 {[%emt 0:00:
37]} 27. Nxa7 {[%emt 0:01:11]} Ra8 {[%emt 0:00:06]} 28. Nc6 {[%emt 0:00:55]}
Rxa2 {[%emt 0:00:05]} 29. f4 {[%emt 0:00:49]} c4 {[%emt 0:01:17]} 30. bxc4 {
[%emt 0:00:26] The position is equal.} dxc4 {[%emt 0:00:45]} 31. Ne5 {[%emt 0:
00:07]} Ra7 {[%emt 0:00:39]} 32. Kf2 {[%emt 0:00:50]} Rc7 {[%emt 0:00:13]} 33.
Ke3 {[%emt 0:00:47]} c3 {[%emt 0:00:19]} 34. g3 {[%emt 0:00:48]} Nc4+ {[%emt 0:
00:56]} 35. Nxc4 {[%emt 0:00:21]} Rxc4 {[%emt 0:00:01] KR-KR} 36. Kd3 {[%emt 0:
00:10]} Rc7 {[%emt 0:00:50]} (36... Ra4 {looks sharper.} 37. Rxc3 h5 38. Rc7+
Kg8 39. Ke3 Ra2) 37. Rxc3 {[%emt 0:00:03]} Re7 {[%emt 0:00:06]} 38. Rc5 {
[%emt 0:00:18]} Kf6 {[%emt 0:00:19]} 39. Ra5 {[%emt 0:01:45]} Re1 {[%emt 0:01:
09]} 40. Ra2 {[%emt 0:00:20]} h6 {[%emt 0:00:36]} 41. Kd2 {[%emt 0:00:44]} Re6
{[%emt 0:00:21]} 42. Ra5 {[%emt 0:00:19]} g5 {[%emt 0:00:35]} 43. f5 {[%emt 0:
00:40]} Rb6 {[%emt 0:00:31]} 44. Ke3 {[%emt 0:00:24]} g4 {[%emt 0:00:30]} 45.
Rd5 {[%emt 0:00:28]} h5 {[%emt 0:00:33]} 46. Rc5 {[%emt 0:00:35]} Rb2 {[%emt 0:
00:29]} 47. Ke4 {[%emt 0:00:45] Accuracy: White = 87%, Black = 83%.} 1/2-1/2

[Event "89_| Campeonato Brasileiro 2023"]
[Site "Recife"]
[Date "2023.12.18"]
[Round "7.5"]
[White "Aranha Filho, Alvaro Zimmermann"]
[Black "Di Berardino, Diego Rafael"]
[Result "0-1"]
[ECO "D85"]
[WhiteElo "2182"]
[BlackElo "2477"]
[PlyCount "82"]
[EventDate "2023.??.??"]
[EventCountry "BRA"]
[TimeControl "90+30"]
[WhiteClock "0:07:44"]
[BlackClock "0:20:50"]

{[%evp 17,82,10,12,16,24,25,24,28,39,6,3,3,6,0,0,0,4,2,13,0,0,0,28,31,36,-14,
88,-3,0,0,0,0,0,-66,-28,-83,0,-92,-55,-84,-46,-41,-61,-54,-15,-85,-77,-92,-87,
-125,-118,-150,-125,-150,-114,-107,-103,-173,-145,-185,-123,-315,-230,-446,
-460,-509,-471]} 1. d4 {[%emt 0:00:00]} Nf6 {[%emt 0:00:00]} 2. Nf3 {[%emt 0:
00:00]} g6 {[%emt 0:00:00]} 3. c4 {[%emt 0:00:00]} Bg7 {[%emt 0:00:00]} 4. Nc3
{[%emt 0:00:00]} d5 {[%emt 0:00:00]} 5. cxd5 {[%emt 0:00:00]} Nxd5 {[%emt 0:00:
00]} 6. e4 {[%emt 0:00:00]} Nxc3 {[%emt 0:00:00]} 7. bxc3 {[%emt 0:00:00]} c5 {
[%emt 0:00:00]} 8. h3 {[%emt 0:00:00]} O-O {[%emt 0:00:00]} 9. Be2 {[%emt 0:00:
00]} b6 {[%emt 0:00:00]} 10. Be3 {[%emt 0:00:00] D85: Exchange Grünfeld:
Unusual White 7th moves and lines with 7 Nf3.} Bb7 {[%emt 0:00:00]} 11. Qd3 {
[%emt 0:00:00]} Nd7 {[%emt 0:00:00]} 12. O-O {[%emt 0:00:00] White has an edge.
} e6 {[%emt 0:00:00]} 13. Rad1 {[%emt 0:00:00]} Nf6 {[%emt 0:00:00]} 14. Nd2 {
[%emt 0:00:00]} Qc7 {[%emt 0:08:30]} 15. Qb1 {[%emt 0:00:00]} Rfd8 $146 {
[%emt 0:00:00]} ({Predecessor:} 15... Rac8 16. Rc1 h6 17. Bd3 Rfd8 18. Rfd1 Qe7
19. Nf3 Nd7 20. Nd2 cxd4 21. cxd4 Rxc1 22. Rxc1 {0-1 (83) Bosch,J (2445)-Van
Wely,L (2651) Netherlands 2004}) 16. Rc1 {[%emt 0:00:00]} Rac8 {[%emt 0:00:00]}
17. Rfd1 {[%emt 0:10:00]} Bc6 {[%emt 0:00:00]} 18. Ba6 {[%emt 0:00:00]} Rb8 {
[%emt 0:00:00]} 19. Bb5 {[%emt 0:00:00]} (19. Be2 {keeps more tension.} h6 20.
Bf3 Rbc8 21. Nc4 cxd4 22. cxd4 Qb7 23. Nd2) 19... a6 {[%emt 0:00:00]} 20. Bxc6
{[%emt 0:00:00]} ({Much weaker is} 20. Bxa6 b5 $17) 20... Qxc6 {[%emt 0:00:00]}
21. f3 {[%eval -14,34] [%emt 0:00:00]} (21. e5 $14 {[%eval 36,24]} Nd5 22. Bg5)
21... Nh5 {[%eval 88,25] [%emt 0:00:00] [#]} (21... c4 $11 {[%eval -14,34]})
22. Nc4 {[%eval -3,35] [%emt 0:00:00]} ({White should play} 22. e5 $1 $16 {
[%eval 88,25]}) 22... b5 $36 {[%emt 0:00:00][%mdl 2048] Black is more active.}
23. Ne5 {[%emt 0:00:00]} Qc7 {[%emt 0:00:00]} 24. Nd3 {[%emt 0:00:00]} c4 {
[%emt 0:00:00]} 25. Nf2 {[%eval -66,25] [%emt 0:00:00]} (25. Nc5 $11 {[%eval 0,
31]} Ra8 26. e5) 25... e5 {[%emt 0:00:00]} 26. Qc2 {[%eval -83,25] [%emt 0:00:
00]} (26. d5 $11 {[%eval -28,29]}) 26... Rbc8 {[%eval 0,32] [%emt 0:00:00]} (
26... exd4 $17 {[%eval -83,25]} 27. cxd4 Rbc8) 27. dxe5 {[%eval -92,27] [%emt
0:00:00]} (27. d5 $11 {[%eval 0,32]}) 27... Qxe5 {[%emt 0:00:00]} 28. Ng4 {
[%emt 0:00:00]} Qc7 {[%emt 0:00:00]} 29. Bg5 $1 {[%emt 0:00:00]} Qc5+ {[%emt 0:
00:00]} 30. Be3 {[%emt 0:00:00]} Qe7 {[%emt 0:00:00]} 31. Bb6 {[%eval -85,31] 
[%emt 0:00:00]} (31. a4 $11 {[%eval -15,32] keeps the balance.}) 31... Rxd1+
$17 {[%emt 0:00:00]} 32. Rxd1 {[%emt 0:00:00]} Nf4 {[%emt 0:00:00]} 33. Be3 {
[%emt 0:00:16]} Nd3 {[%emt 0:00:00]} 34. Nf2 {[%emt 0:00:30]} Nxf2 {[%emt 0:00:
00]} 35. Bxf2 {[%emt 0:00:30]} Rd8 {[%emt 0:00:00]} 36. Rxd8+ {[%emt 0:00:30]}
Qxd8 {[%emt 0:00:00]} 37. Kf1 {[%eval -173,33] [%emt 0:00:30]} (37. f4 $17 {
[%eval -103,30]}) 37... Qd6 {[%emt 0:00:00]} 38. Ke2 {[%emt 0:00:30]} Qh2 {
[%eval -123,31] [%emt 0:00:00]} (38... h5 $19 {[%eval -185,26]} 39. Qd2 Qxd2+
40. Kxd2 f5) 39. g4 $2 {[%eval -315,27] [%emt 0:00:30]} (39. Qd2 $17 {[%eval
-123,31]}) 39... b4 {[%emt 0:00:00][%mdl 64] [#] Deflection} ({Not} 39... Qxh3
40. Qd2 $17) 40. cxb4 $2 {[%eval -446,27] [%emt 0:00:30]} (40. Qd1 {[%eval
-230,31]} Bxc3 41. Qd8+ Kg7 42. Qd5) 40... Bd4 $1 $19 {[%emt 0:00:00]} 41. Ke1
{[%emt 0:00:30]} c3 {[%emt 0:00:00] Accuracy: White = 43%, Black = 61%.} 0-1

[Event "89_| Campeonato Brasileiro 2023"]
[Site "Recife"]
[Date "2023.12.18"]
[Round "7.6"]
[White "Santiago, Yago De Moura"]
[Black "Filgueiras, Nathan Felipe"]
[Result "1/2-1/2"]
[ECO "D00"]
[WhiteElo "2476"]
[BlackElo "2295"]
[PlyCount "33"]
[EventDate "2023.??.??"]
[EventCountry "BRA"]
[TimeControl "90+30"]
[WhiteClock "0:43:43"]

{[%evp 9,33,0,-10,-5,3,0,6,0,0,6,23,-61,6,7,8,7,3,-4,7,8,10,-3,13,-12,-12,-15]
} 1. d4 {[%emt 0:02:00]} d5 {[%emt 0:02:00]} 2. Bf4 {[%emt 0:00:30]} Nf6 {
[%emt 0:00:00]} 3. Nc3 {[%emt 0:00:30]} c5 {[%emt 0:00:00]} 4. e4 {[%emt 0:00:
30]} Nxe4 {[%emt 0:00:00]} 5. Nxe4 {[%emt 0:00:00]} dxe4 {[%emt 0:00:00]} 6.
dxc5 {[%emt 0:00:00] D00:1 d4 d5: Unusual lines.} Qa5+ {[%emt 0:00:00]} 7. c3 {
[%emt 0:00:00]} Qxc5 {[%emt 0:00:00]} 8. Qa4+ {[%emt 0:02:00]} Nc6 {[%emt 0:00:
00]} 9. Qxe4 {[%emt 0:00:30]} Bf5 {[%emt 0:00:00]} 10. Qe3 {[%eval -61,27] 
[%emt 0:00:30]} (10. Qa4 $11 {[%eval 25,31] remains equal.}) (10. Qa4 $11 {
[%eval 23,30]}) 10... Qxe3+ {[%eval 6,28] [%emt 0:00:00]} ({Black should play} 
10... e5 $17 {[%eval -82,24]}) ({Black should play} 10... e5 $15 {[%eval -61,
27]}) 11. Bxe3 $11 {[%emt 0:00:00] The position is equal.The position is equal.
} O-O-O {[%emt 0:00:00]} 12. Nf3 {[%emt 0:00:00]} f6 {[%emt 0:05:30]} 13. a4
$146 {[%emt 0:01:30]} ({Predecessor:} 13. Nd4 Nxd4 14. Bxd4 Kb8 15. O-O-O Rc8
16. Bd3 Bxd3 17. Rxd3 e5 18. Be3 Bc5 19. Bxc5 Rxc5 {1-0 (48) Badacsonyi,S 
(1935)-Kumar,S (1850) London 2023}) ({Predecessor:} 13. Nd4 Nxd4 14. Bxd4 Kb8
15. O-O-O Rc8 16. Bd3 Bxd3 17. Rxd3 e5 18. Be3 Bc5 19. Bxc5 Rxc5 {1-0 (48)
Badacsonyi,S (1935)-Kumar,S (1850) London 2023}) 13... e5 {[%emt 0:00:30]} 14.
Nd2 {[%emt 0:00:30]} Bd6 {[%emt 0:00:30]} 15. Bb5 {[%emt 0:00:30]} Kb8 {
[%emt 0:00:30]} 16. O-O {[%emt 0:00:30]} Ne7 {[%emt 0:00:30]} 17. Nc4 {[%emt 0:
00:00] Accuracy: White = 67%, Black = 76%. . Accuracy: White = 66%, Black =
65%.} 1/2-1/2

[Event "89_| Campeonato Brasileiro 2023"]
[Site "Recife"]
[Date "2023.12.17"]
[Round "7.8"]
[White "Pinheiro, Iung Alicio"]
[Black "Ribeiro, Matheus Mendes Domi"]
[Result "1-0"]
[ECO "C00"]
[WhiteElo "2274"]
[BlackElo "2136"]
[PlyCount "23"]
[EventDate "2023.??.??"]
[EventCountry "BRA"]
[TimeControl "90+30"]
[WhiteClock "0:54:53"]
[BlackClock "0:01:26"]

{[%evp 9,23,0,8,-45,-39,-39,4,0,0,0,15,15,43,47,47,49]} 1. e4 {[%emt 0:00:00]}
e6 {[%emt 0:00:00]} 2. Qe2 {[%emt 0:00:00]} Nc6 {[%emt 0:00:00]} 3. f4 {
[%emt 0:00:00]} d5 {[%emt 0:00:00]} 4. d3 {[%emt 0:00:00]} dxe4 {[%emt 0:00:00]
} 5. dxe4 {[%emt 0:00:00]} e5 {[%emt 0:00:00]} 6. Nf3 {[%emt 0:00:00] C00:
French: Unusual White 2nd moves.} Bg4 $146 {[%emt 0:00:00]} ({Predecessor:} 
6... Bd6 7. c3 Qe7 8. f5 Bd7 9. Be3 g6 10. g4 h5 11. fxg6 hxg4 12. gxf7+ Qxf7 {
1/2-1/2 (100) Stearman,J (2154)-Mucobega,J (2199) Chess.com INT 2016}) 7. c3 {
[%emt 0:00:00]} Qd7 {[%emt 0:00:00]} 8. h3 {[%emt 0:00:00] The position is
equal.} Bxf3 $1 {[%emt 0:00:00]} 9. Qxf3 {[%emt 0:00:00]} O-O-O {[%emt 0:00:00]
} 10. f5 {[%emt 0:00:00]} Nf6 {[%emt 0:00:00]} 11. Be2 {[%emt 0:00:00]} Bc5 {
[%emt 0:05:34]} 12. Nd2 {[%emt 0:00:00]} 1-0